bitfinex-derivatives/quotes_ETHF0:USTF0_20250531
["timestamp","ask_amount","ask_price","bid_price","bid_amount"]
[1748651177953,0.7932,2520.5,2520.3,3.21374766]
[1748651178251,1.288,2520.4,2520.3,4.00700766]
[1748651178451,1.3129,2521.0,2520.4,0.79321]
[1748651178751,1.285,2520.9,2520.3,3.21374766]
[1748651179044,4.4928,2520.9,2520.4,1.3026]
[1748651179247,0.79315,2520.7,2520.4,2.09583]
[1748651179448,2.07817,2520.6,2520.4,1.3026]
[1748651179851,0.79323,2520.4,2520.3,0.00594766]
[1748651181962,0.79321,2520.5,2520.3,0.00594766]
[1748651182249,0.79354,2519.5,2519.0,12.48235619]
[1748651182458,3.2078,2519.4,2519.0,9.27455619]
[1748651182647,0.79359,2519.3,2518.9,0.623]
[1748651182847,1.2848,2519.2,2518.9,0.623]
[1748651183055,3.2078,2519.4,2519.1,0.79362]
[1748651183249,0.79357,2519.3,2519.0,1.24304766]
[1748651183453,1.2848,2519.3,2519.0,2.10825105]
[1748651183753,0.79364,2519.1,2519.0,0.07750105]
[1748651184457,1.2848,2519.3,2519.0,0.00594766]
[1748651184648,1.2848,2519.3,2519.1,0.79361]
[1748651185255,0.79364,2519.1,2519.0,0.00594766]
[1748651185458,4.00144,2519.1,2519.0,0.00594766]
[1748651185659,3.2078,2519.1,2519.0,0.00594766]
[1748651185848,3.2078,2519.1,2519.0,0.79961766]
[1748651186052,1.2848,2519.3,2519.0,0.00594766]
[1748651186254,0.00594766,2519.5,2519.4,0.79354]
[1748651186755,0.00594766,2519.5,2519.3,4.00136]
[1748651186957,0.79354,2519.4,2519.3,3.2078]
[1748651187163,0.79354,2519.4,2519.0,0.00594766]
[1748651187164,3.21374766,2519.5,2519.0,0.00594766]
[1748651187355,0.79364,2519.1,2519.0,0.00594766]
[1748651187550,0.79362,2519.2,2519.0,0.00594766]
[1748651187755,0.79364,2519.1,2519.0,0.00594766]
[1748651187950,1.298,2519.3,2519.0,0.00594766]
[1748651188461,0.79364,2519.1,2519.0,0.00594766]
[1748651189357,1.298,2519.3,2519.0,0.00594766]
[1748651189653,1.9495,2519.3,2519.0,0.00594766]
[1748651189857,0.79364,2519.1,2519.0,0.00594766]
[1748651190553,2.06954,2519.1,2519.0,0.00594766]
[1748651191259,3.2078,2519.2,2519.0,0.00594766]
[1748651191466,1.2895,2519.4,2519.0,0.00594766]
[1748651191467,2.5693,2519.4,2519.0,0.00594766]
[1748651191951,1.2798,2519.4,2519.0,0.00594766]
[1748651192160,3.21374766,2519.5,2519.0,0.00594766]
[1748651192161,0.00594766,2519.5,2519.2,3.2078]
[1748651192465,0.00594766,2519.5,2519.4,0.79354]
[1748651192856,0.00594766,2519.5,2519.3,1.332]
[1748651193162,0.79947766,2519.5,2519.2,4.00139]
[1748651193355,0.79354,2519.4,2519.2,4.5398]
[1748651193555,0.79358,2519.3,2519.1,0.6516]
[1748651193860,1.2798,2519.3,2519.1,0.6516]
[1748651194562,0.79364,2519.1,2519.0,0.00594766]
[1748651195160,0.79363,2519.2,2519.0,0.00594766]
[1748651195355,2.10981,2519.2,2519.0,0.00594766]
[1748651195861,1.3162,2519.2,2519.0,0.79960766]
[1748651196159,0.79364,2519.1,2519.0,0.00594766]
[1748651197063,2.14964,2519.1,2519.0,0.00594766]
[1748651197261,1.356,2519.1,2519.0,0.00594766]
[1748651197863,2.14964,2519.1,2519.0,0.00594766]
[1748651198556,2.79644,2519.1,2519.0,0.07750105]
[1748651198960,1.98425,2519.0,2518.2,6.145]
[1748651199164,3.2078,2518.6,2518.2,6.145]
[1748651199463,1.356,2518.5,2518.2,6.145]
[1748651199663,2.14983,2518.5,2518.2,8.30921]
[1748651199862,1.356,2518.5,2518.3,0.79387]
[1748651200163,1.356,2518.5,2518.2,8.3092]
[1748651200164,2.14984,2518.5,2518.2,8.3092]
[1748651200461,3.2078,2518.6,2518.2,7.5153]
[1748651200663,3.2078,2518.6,2518.4,0.79385]
[1748651201466,3.2078,2519.2,2518.5,3.2078]
[1748651201763,1.2955,2519.0,2518.6,1.3373]
[1748651201958,0.79372,2518.9,2518.6,2.13109]
[1748651202263,1.2955,2519.0,2518.4,0.79383]
[1748651202461,1.2955,2518.8,2518.3,1.3373]
[1748651202663,0.79384,2518.5,2518.2,9.3528]
[1748651202868,1.2955,2518.4,2518.2,10.14671]
[1748651203362,1.2955,2518.4,2518.2,3.2078]
[1748651203553,0.79392,2518.2,2518.1,0.00594766]
[1748651204259,5.26042,2518.2,2518.1,0.00594766]
[1748651204768,10.26042,2518.2,2518.1,0.00594766]
[1748651205466,1.98495,2518.1,2516.9,3.2078]
[1748651205668,0.79425,2517.2,2516.9,3.2078]
[1748651205862,3.2078,2517.6,2516.9,4.4448]
[1748651206062,0.79426,2517.2,2516.9,4.4448]
[1748651206258,0.79422,2517.3,2516.9,4.4448]
[1748651206463,3.2078,2517.6,2516.9,4.4448]
[1748651206464,0.00594766,2517.4,2516.9,4.4448]
[1748651206765,0.00594766,2517.4,2517.3,0.7942]
[1748651206962,3.8835,2518.0,2517.3,7.3961]
[1748651206963,3.2078,2518.0,2517.3,7.3961]
[1748651207266,3.2078,2518.0,2517.9,0.79401]
[1748651207458,4.4598,2518.4,2517.8,6.099]
[1748651207768,0.7939,2518.3,2517.8,6.89303]
[1748651207969,2.05184766,2518.3,2517.9,1.2971]
[1748651208170,2.05185766,2518.3,2517.8,6.099]
[1748651208364,1.25794766,2518.3,2517.8,7.3961]
[1748651208566,1.25794766,2518.3,2517.8,6.099]
[1748651208869,0.79394,2518.2,2517.8,6.099]
[1748651209065,1.3637,2518.1,2517.8,7.4514]
[1748651209274,1.3637,2518.1,2517.8,8.24544]
[1748651209571,1.3637,2518.1,2517.8,8.24542]
[1748651209768,0.79398,2518.0,2517.8,6.099]
[1748651210161,2.15768,2518.0,2517.8,6.099]
[1748651210362,0.79401,2517.9,2517.8,6.099]
[1748651210673,0.79401,2517.9,2517.3,3.2078]
[1748651210674,3.2078,2517.9,2517.4,6.099]
[1748651210971,1.3637,2517.8,2517.5,0.79413]
[1748651211165,1.3637,2517.8,2517.5,2.14653]
[1748651211364,2.15776,2517.8,2517.5,1.3524]
[1748651211765,0.79412,2517.6,2517.4,6.099]
[1748651211962,1.3637,2517.8,2517.4,6.099]
[1748651212167,3.8549,2518.1,2517.6,3.2078]
[1748651212469,3.2078,2518.1,2517.8,0.79403]
[1748651212668,3.2078,2518.1,2517.9,1.3058]
[1748651212869,0.79398,2518.0,2517.9,1.3058]
[1748651213073,0.79408,2517.7,2517.6,3.2078]
[1748651213275,3.2078,2517.8,2517.3,1.3058]
[1748651213465,0.79408,2517.7,2517.3,1.3058]
[1748651213660,1.3116,2517.9,2517.3,1.3058]
[1748651213976,0.79419,2517.4,2517.2,9.9573]
[1748651214277,0.79418,2517.4,2517.2,9.9573]
[1748651214773,0.7942,2517.3,2517.2,3.2078]
[1748651214974,1.3116,2517.3,2516.9,3.27935339]
[1748651215166,1.3116,2517.3,2516.9,4.61085339]
[1748651215365,0.79426,2517.2,2516.9,3.27935339]
[1748651215669,2.04448,2517.1,2516.9,3.27935339]
[1748651215966,1.2502,2517.1,2516.9,3.27935339]
[1748651216175,3.2078,2517.5,2516.9,3.27935339]
[1748651216470,0.7943,2517.0,2516.9,3.27935339]
[1748651216669,1.2502,2517.4,2516.9,3.27935339]
[1748651216870,0.7943,2517.1,2516.9,3.27935339]
[1748651217372,1.2502,2517.4,2516.9,3.27935339]
[1748651217665,0.79439,2516.7,2516.6,0.6827]
[1748651217872,3.2078,2517.0,2516.9,0.07155339]
[1748651218671,0.00595959,2517.2,2517.1,0.79427]
[1748651218869,3.2078,2517.9,2517.2,1.98559]
[1748651219068,2.355516,2518.1,2517.8,0.79403]
[1748651219266,5.30864,2518.2,2517.8,0.79403]
[1748651219667,3.2078,2518.2,2517.6,6.101]
[1748651219872,3.21375959,2518.2,2517.7,3.2078]
[1748651220073,0.00595959,2518.2,2517.9,0.794]
[1748651220267,0.00595959,2518.2,2518.0,0.79398]
[1748651220469,0.00595959,2518.2,2518.1,1.44745]
[1748651220685,0.00595959,2518.2,2518.1,7.54845]
[1748651220975,0.00595959,2518.2,2518.1,11.7545]
[1748651221166,0.00595959,2518.2,2518.1,6.7545]
[1748651221366,0.79987959,2518.2,2518.1,6.7545]
[1748651221566,0.00595959,2518.2,2517.5,4.00193]
[1748651221771,2.06516,2518.1,2517.7,0.79406]
[1748651222076,0.00595959,2518.2,2517.7,3.2078]
[1748651222374,0.00595959,2518.2,2517.9,0.79401]
[1748651222676,0.00595959,2518.2,2517.7,3.2078]
[1748651222677,0.00595959,2518.2,2518.1,0.79395]
[1748651222972,0.00595959,2518.2,2518.1,6.89495]
[1748651223177,0.00595959,2518.2,2518.1,0.6237]
[1748651223370,0.79398,2518.0,2517.9,6.101]
[1748651223570,0.79404,2517.9,2517.7,6.101]
[1748651223769,1.2712,2518.1,2517.7,6.101]
[1748651223976,0.79396,2518.1,2517.7,6.89506]
[1748651224173,3.21375959,2518.2,2517.7,6.101]
[1748651224475,0.00595959,2518.2,2518.1,0.79395]
[1748651224671,0.00595959,2518.2,2518.1,0.6532]
[1748651224867,0.00595959,2518.2,2518.1,4.65495]
[1748651225376,0.00595959,2518.2,2518.1,3.861]
[1748651226180,0.00595959,2518.2,2518.1,4.72650339]
[1748651226375,3.2078,2518.9,2518.8,0.79373]
[1748651226570,5.7729,2519.5,2518.8,3.2078]
[1748651226775,3.2078,2519.5,2519.1,3.2078]
[1748651226975,3.2078,2519.5,2519.3,0.79357]
[1748651227177,0.79356,2519.4,2519.2,6.1]
[1748651227377,0.79367,2519.0,2518.9,0.6532]
[1748651227578,3.2078,2519.0,2518.7,0.00595959]
[1748651227779,0.79373,2518.8,2518.7,0.00595959]
[1748651228080,3.2078,2519.0,2518.7,0.00595959]
[1748651228278,0.79373,2518.8,2518.7,0.00595959]
[1748651228783,0.79369,2519.0,2518.7,0.00595959]
[1748651228981,4.5237,2519.2,2518.7,0.00595959]
[1748651228982,0.79373,2518.8,2518.7,0.00595959]
[1748651229479,4.5237,2519.2,2518.7,0.00595959]
[1748651229778,3.2078,2519.2,2518.8,3.2078]
[1748651230084,0.79357,2519.4,2519.0,0.79365]
[1748651230276,2.75902,2519.5,2518.9,0.6484]
[1748651230579,0.79362,2519.2,2519.0,6.1]
[1748651230773,1.9655,2519.5,2519.0,6.1]
[1748651230975,1.3159,2519.5,2519.1,3.2078]
[1748651231178,1.3159,2519.5,2519.0,6.1]
[1748651231779,0.79361,2519.2,2519.0,6.1]
[1748651231976,0.79364,2519.1,2519.0,6.1]
[1748651232178,2.07794,2519.1,2519.0,6.1]
[1748651232985,0.79373,2518.8,2518.7,1.34705959]
[1748651233476,2.07795,2519.1,2518.7,2.14080959]
[1748651233681,2.05559,2519.3,2518.9,0.79369]
[1748651233883,3.21375959,2519.6,2519.1,3.2078]
[1748651234078,3.21375959,2519.6,2519.2,8.0263]
[1748651234277,3.21375959,2519.6,2519.3,2.06077]
[1748651234477,3.21375959,2519.6,2519.3,2.06076]
[1748651234785,3.21375959,2519.6,2519.3,1.2672]
[1748651235085,3.21375959,2519.6,2519.0,6.099]
[1748651235282,1.262,2519.5,2519.0,6.099]
[1748651235484,3.2078,2519.1,2518.8,0.6601]
[1748651235692,0.7937,2518.9,2518.8,0.6601]
[1748651236481,2.05567,2519.0,2518.8,0.6601]
[1748651236680,2.05567,2519.0,2518.8,1.9406]
[1748651236888,3.2078,2519.4,2518.8,1.9406]
[1748651237090,0.79362,2519.2,2518.9,0.7937]
[1748651237385,0.79362,2519.2,2519.0,1.2805]
[1748651237588,0.7937,2518.9,2518.8,0.6601]
[1748651237786,0.79373,2518.8,2518.7,0.00595959]
[1748651237983,2.03083,2518.8,2518.7,0.00595959]
[1748651238384,0.6402,2519.0,2518.7,0.00595959]
[1748651238579,1.8773,2519.0,2518.7,0.00595959]
[1748651239095,0.79373,2518.8,2518.7,0.00595959]
[1748651239891,2.04463,2518.8,2518.7,0.00595959]
[1748651240087,1.2509,2518.8,2518.7,0.00595959]
[1748651240491,0.79369,2519.0,2518.7,2.15221959]
[1748651240789,0.79369,2519.0,2518.7,1.35845959]
[1748651240985,3.2078,2519.1,2518.7,1.35845959]
[1748651241184,1.2509,2519.2,2518.7,1.35845959]
[1748651241185,3.2078,2519.4,2518.8,3.2078]
[1748651241383,0.00595959,2519.6,2519.2,3.2078]
[1748651241585,0.00595959,2519.6,2519.3,1.3525]
[1748651241892,0.79352,2519.5,2519.3,1.3525]
[1748651242290,0.79357,2519.3,2518.9,0.79367]
[1748651242493,0.79356,2519.4,2519.0,10.05346]
[1748651242795,0.7936,2519.2,2519.1,1.2905]
[1748651242990,1.3224,2519.3,2519.1,1.2905]
[1748651243197,3.2078,2519.2,2518.7,0.00595959]
[1748651243492,0.79387,2518.4,2518.0,8.13647]
[1748651243793,3.2078,2518.8,2518.1,6.052]
[1748651243794,0.79389,2518.3,2518.1,6.052]
[1748651243996,0.79389,2518.3,2518.2,1.2905]
[1748651244490,1.3224,2518.7,2518.2,4.4983]
[1748651244787,3.2078,2519.1,2518.2,5.1285]
[1748651244994,1.3224,2519.1,2518.5,3.2078]
[1748651245191,3.2078,2519.4,2518.8,3.2078]
[1748651245397,3.2078,2519.4,2518.7,1.98434]
[1748651245398,0.00595959,2519.6,2519.3,0.79357]
[1748651245594,0.00595959,2519.6,2519.4,7.3288]
[1748651245997,0.79351,2519.5,2519.4,7.3288]
[1748651246295,0.00595959,2519.6,2519.5,0.79351]
[1748651246499,0.00595959,2519.6,2519.5,5.27711]
[1748651246702,0.00595959,2519.6,2519.5,10.27711]
[1748651247595,0.79943959,2519.6,2519.5,1.2758]
[1748651247794,0.79945959,2519.6,2519.4,6.053]
[1748651248002,0.00595959,2519.6,2519.4,6.053]
[1748651248198,0.00595959,2519.6,2519.5,2.06931]
[1748651248502,0.00595959,2519.6,2519.5,5.27711]
[1748651249295,0.00595959,2519.6,2519.5,10.27711]
[1748651249601,0.00595959,2519.6,2519.5,7.06931]
[1748651249799,0.00595959,2519.6,2519.5,10.27711]
[1748651250707,0.79321,2520.5,2520.2,0.79328]
[1748651251001,0.79321,2520.5,2519.3,0.00595959]
[1748651251002,3.2078,2520.8,2520.3,6.051]
[1748651251303,0.79317,2520.6,2520.4,7.3341]
[1748651251793,1.3182,2520.7,2520.4,7.3341]
[1748651251993,0.79319,2520.5,2520.4,7.3341]
[1748651252200,0.79319,2520.5,2520.4,6.051]
[1748651252401,0.79319,2520.6,2520.4,6.051]
[1748651252901,1.3182,2520.7,2520.4,6.051]
[1748651252902,0.79319,2520.5,2520.4,6.051]
[1748651253209,1.3182,2520.7,2520.4,6.84422]
[1748651253407,3.21375959,2520.8,2520.4,6.051]
[1748651253700,3.21375959,2520.8,2520.5,1.9777]
[1748651254000,4.00687959,2520.8,2520.5,2.77088]
[1748651254206,3.21375959,2520.8,2520.4,6.051]
[1748651254396,0.79318,2520.6,2520.4,6.051]
[1748651254596,1.3685,2520.7,2520.4,6.051]
[1748651255103,0.79319,2520.5,2520.4,6.051]
[1748651255302,3.2078,2520.5,2520.0,6.05]
[1748651255606,0.79332,2520.1,2520.0,6.05]
[1748651256003,2.16142,2520.1,2520.0,6.05]
[1748651256302,2.81402,2520.1,2520.0,6.05]
[1748651257203,0.79344,2519.8,2519.6,46.063]
[1748651257402,0.79338,2519.9,2519.6,46.85646]
[1748651257592,2.0207,2520.1,2519.6,46.063]
[1748651257798,2.0207,2520.1,2519.7,1.3313]
[1748651257998,2.0207,2520.1,2519.6,46.063]
[1748651258191,0.79342,2519.8,2519.6,46.063]
[1748651258591,3.2078,2519.9,2519.6,46.063]
[1748651258903,0.79352,2519.5,2519.3,9.26375959]
[1748651259099,2.11514,2519.4,2519.3,9.26375959]
[1748651259300,1.3216,2519.4,2519.3,9.26375959]
[1748651259500,3.2078,2519.9,2519.4,0.79352]
[1748651259501,0.79343,2519.8,2519.4,0.79352]
[1748651259801,0.79347,2519.7,2519.4,1.3313]
[1748651260008,1.3216,2519.8,2519.3,9.26375959]
[1748651260212,1.3216,2519.6,2519.3,9.26375959]
[1748651260504,0.6526,2520.1,2519.5,0.79349]
[1748651260699,0.6526,2520.1,2519.3,10.59505959]
[1748651260700,1.2531,2520.0,2519.3,9.26375959]
[1748651260906,0.79349,2519.6,2519.4,1.3083]
[1748651261097,0.79354,2519.4,2519.3,9.26375959]
[1748651261699,0.79354,2519.4,2519.3,6.05595959]
[1748651262108,0.79389,2518.3,2518.2,3.2078]
[1748651262408,31.17133,2519.4,2518.0,11.30289062]
[1748651262409,5.19222,2518.7,2518.0,11.30289062]
[1748651262705,0.6666,2518.6,2518.0,7.3583]
[1748651262906,1.9197,2518.6,2518.0,7.3583]
[1748651263096,1.92565959,2518.6,2518.0,7.36425959]
[1748651263305,1.25905959,2518.6,2518.4,0.79384]
[1748651263710,0.79385,2518.5,2518.1,1.42794]
[1748651264008,0.79382,2518.5,2518.1,1.42793]
[1748651264205,1.25905959,2518.6,2518.1,1.42793]
[1748651264206,2.05286959,2518.6,2518.2,0.79391]
[1748651264405,0.79383,2518.5,2518.2,2.12191]
[1748651264607,0.79388,2518.4,2518.0,6.84992959]
[1748651264808,3.2078,2518.4,2518.0,6.05595959]
[1748651265106,0.79395,2518.1,2518.0,6.05595959]
[1748651265308,0.79394,2518.2,2518.0,6.05595959]
[1748651265510,2.09935,2518.1,2518.0,0.00595959]
[1748651265714,5.50565,2518.1,2518.0,0.00595959]
[1748651265899,10.50565,2518.1,2518.0,0.00595959]
[1748651266411,0.79414,2517.5,2517.4,40.006]
[1748651266610,0.79417,2517.4,2517.2,9.2138]
[1748651266907,0.79428,2517.1,2516.8,6.006]
[1748651267210,1.3482,2517.3,2516.5,44.01525]
[1748651267410,0.79435,2516.9,2516.6,0.00595959]
[1748651267615,3.2078,2517.1,2516.6,0.00595959]
[1748651267616,1.3482,2516.8,2516.6,0.00595959]
[1748651267805,1.3482,2516.8,2516.6,0.80037959]
[1748651268306,0.79439,2516.7,2516.6,0.00595959]
[1748651268511,1.98604,2516.7,2515.5,3.8441]
[1748651268708,1.98604,2516.7,2515.5,3.2078]
[1748651268709,3.2078,2516.1,2515.5,3.2078]
[1748651268908,1.3482,2516.0,2515.5,3.2078]
[1748651269515,1.3482,2516.0,2515.5,4.00852959]
[1748651269708,1.3482,2516.0,2515.6,0.79474]
[1748651270107,1.3482,2516.0,2515.5,3.21375959]
[1748651270313,0.79466,2515.9,2515.5,3.21375959]
[1748651270506,1.3095,2515.8,2515.5,3.21375959]
[1748651270903,4.5173,2515.8,2515.5,0.00595959]
[1748651271109,4.5173,2515.8,2515.7,0.79471]
[1748651271313,0.00595959,2515.9,2515.8,0.79468]
[1748651271503,0.00595959,2515.9,2515.8,6.80268]
[1748651272005,0.00595959,2515.9,2515.8,11.80268]
[1748651272211,1.98534,2517.6,2516.7,0.79439]
[1748651272212,4.5173,2516.8,2516.7,0.79439]
[1748651272411,4.5173,2516.8,2516.6,0.79441]
[1748651272612,4.5173,2516.8,2516.2,3.2078]
[1748651272810,4.5173,2516.8,2516.3,0.79452]
[1748651273015,0.79441,2516.7,2516.2,6.80454]
[1748651273314,0.79441,2516.7,2516.3,0.7945]
[1748651273315,1.3224,2516.6,2516.3,0.7945]
[1748651273612,0.00595959,2516.7,2516.6,0.79442]
[1748651274210,1.3224,2517.4,2516.6,5.0]
[1748651274405,1.3224,2517.4,2516.9,3.2078]
[1748651274616,1.40184704,2517.4,2517.0,1.2847]
[1748651274812,1.40184704,2517.4,2517.0,2.07898]
[1748651275017,0.07944704,2517.4,2517.2,0.79422]
[1748651275315,0.07944704,2517.4,2516.3,3.2078]
[1748651275506,4.5302,2517.3,2516.3,3.2078]
[1748651275707,2.11662,2517.3,2516.8,0.79434]
[1748651276011,2.11662,2517.3,2516.4,1.2847]
[1748651276012,0.07945336,2517.2,2517.1,0.79427]
[1748651276410,0.07945336,2517.2,2517.0,1.2433]
[1748651276717,0.07945336,2517.2,2516.9,6.011]
[1748651276913,1.2486,2517.1,2516.9,6.8053]
[1748651277114,1.2486,2517.1,2517.0,0.7943]
[1748651278012,1.2486,2517.1,2516.9,6.80531]
[1748651278211,1.2486,2517.1,2516.9,6.011]
[1748651278414,0.7943,2517.0,2516.9,6.011]
[1748651278713,4.4564,2517.1,2516.9,6.011]
[1748651279021,1.2486,2517.1,2516.9,6.80533]
[1748651279318,1.2486,2517.1,2517.0,0.7943]
[1748651279814,1.2486,2517.1,2516.9,6.011]
[1748651280523,3.2078,2517.4,2517.3,0.7942]
[1748651280723,3.2078,2517.4,2517.1,0.79425]
[1748651281219,3.2078,2517.4,2517.0,1.2569]
[1748651281513,0.79419,2517.4,2517.0,2.05117]
[1748651281721,0.79433,2516.9,2516.5,4.00223]
[1748651281921,3.2078,2517.1,2516.6,6.011]
[1748651282224,2.09089,2517.0,2516.6,6.8054]
[1748651282422,2.09089,2517.0,2516.6,8.1017]
[1748651282721,1.2966,2517.0,2516.9,0.79432]
[1748651282918,0.1986,2517.3,2517.2,0.79423]
[1748651283117,0.9928,2517.3,2516.8,3.2078]
[1748651283318,0.79431,2517.0,2516.6,6.80541]
[1748651283518,1.4952,2517.3,2516.7,2.09069]
[1748651283724,2.28942,2517.3,2516.7,1.2963]
[1748651283924,2.28942,2517.3,2516.7,4.5041]
[1748651283925,0.1986,2517.3,2516.7,4.5041]
[1748651284229,0.1986,2517.3,2517.2,0.79423]
[1748651284424,0.1986,2517.3,2517.2,8.10153]
[1748651284720,0.1986,2517.3,2517.2,8.77543]
[1748651284923,0.9928,2517.3,2517.2,7.9812]
[1748651285113,0.1986,2517.3,2517.2,8.10153]
[1748651285730,0.1986,2517.3,2517.2,7.3073]
[1748651285931,0.9928,2517.3,2517.2,7.3073]
[1748651286217,0.9928,2517.3,2517.2,6.011]
[1748651286616,4.2006,2517.3,2517.2,6.011]
[1748651287227,0.79423,2517.2,2517.1,0.07155339]
[1748651287421,2.06763,2517.2,2517.1,0.07155339]
[1748651287618,1.2734,2517.2,2517.1,0.07155339]
[1748651288018,1.2734,2517.2,2517.1,0.86581339]
[1748651288218,1.2734,2517.2,2517.1,0.07155339]
[1748651288719,0.1986,2517.3,2517.1,0.07155339]
[1748651289027,0.1986,2517.3,2517.2,1.2389]
[1748651289323,0.79423,2517.2,2517.1,0.07155339]
[1748651289525,2.06283,2517.2,2517.1,0.07155339]
[1748651290120,1.2686,2517.2,2517.1,0.07155339]
[1748651290425,2.06283,2517.2,2517.1,0.07155339]
[1748651290627,7.06283,2517.2,2517.1,0.07155339]
[1748651290930,0.79451,2516.3,2516.2,3.21375959]
[1748651291318,3.2078,2516.7,2516.2,4.00828959]
[1748651291518,1.242,2516.6,2516.2,3.21375959]
[1748651291829,4.00231,2516.3,2516.2,0.00595959]
[1748651292125,4.00231,2516.3,2515.1,1.98722]
[1748651292126,0.79467,2515.9,2515.6,6.011]
[1748651292325,1.242,2516.2,2515.6,6.011]
[1748651292527,2.03656,2516.2,2515.7,0.79469]
[1748651292722,3.2078,2516.3,2515.8,3.2078]
[1748651292922,3.2078,2516.8,2515.9,1.2747]
[1748651293124,0.79447,2516.5,2516.1,0.80052959]
[1748651293323,0.00595959,2516.6,2516.1,0.00595959]
[1748651293524,2.03648,2516.4,2516.1,0.00595959]
[1748651293729,0.79453,2516.3,2516.1,0.00595959]
[1748651293927,2.03653,2516.3,2516.1,0.00595959]
[1748651294625,1.242,2516.3,2516.1,0.00595959]
[1748651294825,3.2078,2516.2,2516.1,0.00595959]
[1748651295124,0.99324,2516.2,2516.1,0.00595959]
[1748651295330,4.20104,2516.2,2516.1,0.00595959]
[1748651296230,3.4065,2516.2,2516.1,0.00595959]
[1748651296429,0.1987,2516.2,2516.1,0.00595959]
[1748651297029,0.99324,2516.2,2516.1,0.00595959]
[1748651297222,4.20104,2516.2,2516.1,0.00595959]
[1748651297429,0.1987,2516.2,2516.1,0.00595959]
[1748651297829,1.4532,2516.2,2516.1,0.00595959]
[1748651298035,2.24774,2516.2,2516.1,0.00595959]
[1748651298533,2.24775,2516.2,2516.1,0.00595959]
[1748651299939,2.24775,2516.2,2516.1,0.07751298]
[1748651300236,1.4532,2516.2,2516.1,0.07751298]
[1748651300533,2.24774,2516.2,2516.1,0.07751298]
[1748651301431,1.4532,2516.2,2516.1,0.07751298]
[1748651301638,0.1987,2516.2,2516.1,0.07751298]
[1748651301935,0.99324,2516.2,2516.1,1.37071298]
[1748651302132,0.1987,2516.2,2516.1,1.37071298]
[1748651302635,0.1987,2516.2,2516.1,5.37309298]
[1748651302835,0.1987,2516.2,2516.1,10.37309298]
[1748651303741,0.99324,2516.2,2516.1,4.57851298]
[1748651303940,0.99324,2516.2,2516.1,1.37071298]
[1748651304241,0.1987,2516.2,2516.1,1.37071298]
[1748651304540,0.1987,2516.2,2516.1,2.16529298]
[1748651304937,0.1987,2516.2,2516.1,0.07751298]
[1748651305137,4.20104,2516.2,2516.1,0.07751298]
[1748651306242,0.79481,2515.4,2515.2,3.2078]
[1748651306844,0.79478,2515.5,2515.1,0.79489]
[1748651307047,4.4833,2515.8,2515.2,1.3501]
[1748651307442,4.4833,2515.8,2515.0,0.00595959]
[1748651307645,3.2078,2515.5,2515.0,0.00595959]
[1748651307845,0.79484,2515.3,2515.0,0.00595959]
[1748651308040,0.79489,2515.1,2515.0,0.00595959]
[1748651308652,2.07039,2515.1,2515.0,0.00595959]
[1748651308844,6.4742,2515.1,2514.2,3.2078]
[1748651309153,0.79502,2514.7,2513.9,10.5279]
[1748651309453,1.2528,2514.6,2514.3,3.2078]
[1748651309747,0.1987,2515.1,2514.8,0.79497]
[1748651309943,0.1987,2515.1,2514.7,3.2078]
[1748651310149,0.1987,2515.1,2514.8,1.2697]
[1748651310442,0.79492,2515.0,2514.8,1.2697]
[1748651310745,0.79494,2515.0,2514.6,5.97]
[1748651310946,1.2528,2515.0,2514.6,5.97]
[1748651311549,1.2528,2515.0,2514.6,6.76503]
[1748651311748,4.20141,2515.1,2514.7,2.06471]
[1748651311943,0.79495,2515.0,2514.8,1.2697]
[1748651312144,3.4065,2515.1,2514.8,1.2697]
[1748651312351,4.20141,2515.1,2514.8,1.2697]
[1748651312553,0.79494,2515.0,2514.4,4.5412]
[1748651312853,0.79494,2515.0,2514.2,0.00397337]
[1748651312854,3.2078,2514.8,2514.2,0.00397337]
[1748651313157,3.2078,2514.8,2514.3,9.1788]
[1748651313347,0.1987,2515.1,2514.7,0.795]
[1748651313543,0.1987,2515.1,2515.0,0.79492]
[1748651313749,0.1987,2515.1,2514.9,6.76592]
[1748651313955,0.1987,2515.1,2515.0,1.2743]
[1748651314142,0.99359,2515.1,2515.0,1.2743]
[1748651314343,0.1987,2515.1,2515.0,2.06922]
[1748651314754,0.1987,2515.1,2515.0,1.2743]
[1748651314949,0.99359,2515.1,2514.7,1.4333]
[1748651315146,0.79492,2515.0,2514.7,0.6383]
[1748651315356,1.4445,2515.1,2514.7,2.0109]
[1748651315555,0.1987,2515.1,2515.0,0.79492]
[1748651315859,0.1987,2515.1,2515.0,6.76592]
[1748651316157,0.1987,2515.1,2515.0,8.13852]
[1748651318162,0.1987,2515.1,2515.0,13.13852]
[1748651318353,0.1987,2515.1,2515.0,8.13852]
[1748651318955,0.1987,2515.1,2515.0,13.13852]
[1748651319158,4.5327,2515.7,2515.0,13.13852]
[1748651319159,3.2078,2515.7,2515.6,0.79473]
[1748651319460,0.79473,2515.6,2515.5,5.971]
[1748651319762,4.4822,2516.0,2515.5,5.971]
[1748651320056,0.79472,2515.7,2515.5,5.97695959]
[1748651320264,0.79472,2515.7,2515.6,1.2449]
[1748651320560,3.21375959,2516.0,2515.5,5.97695959]
[1748651320760,0.7947,2515.7,2515.6,1.2449]
[1748651321070,0.79473,2515.6,2515.5,5.97695959]
[1748651321364,2.06913,2515.6,2515.5,0.00595959]
[1748651322164,1.2744,2515.6,2515.5,0.00595959]
[1748651322463,2.06913,2515.6,2515.5,0.00595959]
[1748651323069,1.2744,2515.6,2515.5,0.00595959]
[1748651323563,0.6712,2515.9,2515.5,0.00595959]
[1748651323763,1.2384,2515.6,2515.5,0.00595959]